Cogmind - Beta 16 @@@ ROGUE MODE // 2025.12.18 @ 23:48:02 Player: War__Prophet Result: Destroyed by B-60 Warrior with Heavy Mace Performance ------------- Evolutions (5) 2500 Regions Visited (10) 2000 Robots Destroyed (57) 285 Value Destroyed (1756) 1756 Prototype IDs (5) 100 Alien Tech Used (0) 0 Bonus (842) 842 TOTAL SCORE: 7483 Bonus ------- Pacifist 200 Follower Combat Kills 142 Entered DSFs 500 Cogmind --------- Core Integrity 0/1000 Matter 102/300 Energy 100/100 System Corruption 0% Temperature Cool (0) Movement Core (50) Location -5/Upper Caves Parts ------- > --- POWER (3) -------- (None) > --- PROPULSION (8) --- (None) > --- UTILITY (4) ------ (None) > --- WEAPON (2) ------- (None) > --- INVENTORY (5) ---- Heat Sink Improved Heat Sink Small Storage Unit Signal Interpreter Mining Claw Peak State ------------ > --- POWER ------------ Cooled Ion Engine > --- PROPULSION ------- Armored Huge Wheel Armored Huge Wheel Armored Huge Wheel Armored Huge Wheel > --- UTILITY ---------- Improved Heat Sink Large Storage Unit > --- WEAPON ----------- Flak Gun Flak Gun > --- INVENTORY -------- Cooled Ion Engine Light Nuclear Core F-cell Engine Armored Huge Wheel Heat Sink Improved Heat Sink Improved Heat Sink Small Storage Unit Signal Interpreter Improved Assault Rifle High-powered Shotgun Flak Gun Mining Claw [Rating: 51] Favorites ----------- Power Cooled Ion Engine Engine Cooled Ion Engine Power Core Light Nuclear Core Propulsion Armored Huge Wheel Treads Medium Treads Leg Aluminum Leg Wheel Armored Huge Wheel Flight Unit Flight Unit Utility Large Storage Unit Device Sensor Array Storage Large Storage Unit Weapon Minigun Ballistic Gun Minigun Ballistic Cannon Mini Assault Cannon Slashing Weapon Mining Claw Build | -11 -10 -10 -9 -9 -8 -7 -6 -6 -5 -5 ------- Run | Yrd Mat Min Mat Sto Mat Fac Fac DSF Fac Upp Slots Evolved 10 | . . . 2 . 2 2 2 . 2 . Power 2 | . . . . . . . 1 . 1 . Propulsion 6 | . . . 2 . 2 2 . . . . Utility 2 | . . . . . . . 1 . 1 . Weapon . | . . . . . . . . . . . Parts Attached 52 | 6 . 1 2 12 12 13 . . 1 5 Power 7 | 1 . . . 4 1 1 . . . . Engine 6 | 1 . . . 4 1 . . . . . Core 1 | . . . . . . 1 . . . . Reactor . | . . . . . . . . . . . Propulsion 16 | 2 . . 1 5 4 3 . . . 1 Treads 1 | . . . . . . . . . . 1 Leg 4 | . . . . 3 1 . . . . . Wheel 8 | 2 . . . . 3 3 . . . . Hover . | . . . . . . . . . . . Flight 3 | . . . 1 2 . . . . . . Utility 8 | 1 . 1 . 1 3 2 . . . . Device 6 | . . 1 . 1 2 2 . . . . Storage 2 | 1 . . . . 1 . . . . . Processor . | . . . . . . . . . . . Hackware . | . . . . . . . . . . . Protection . | . . . . . . . . . . . Artifact . | . . . . . . . . . . . Weapon 21 | 2 . . 1 2 4 7 . . 1 4 Energy Gun . | . . . . . . . . . . . Energy Cannon . | . . . . . . . . . . . Ballistic Gun 16 | 2 . . 1 1 4 5 . . . 3 Ballistic Cannon 2 | . . . . . . 2 . . . . Launcher . | . . . . . . . . . . . Special Weapon . | . . . . . . . . . . . Impact Weapon . | . . . . . . . . . . . Slashing Weapon 3 | . . . . 1 . . . . 1 1 Piercing Weapon . | . . . . . . . . . . . Special Melee Weapon . | . . . . . . . . . . . Unidentified Prototypes 5 | . . . . 4 . 1 . . . . Parts Lost 27 | . . . . 8 2 9 . 1 . 7 Power 3 | . . . . 1 . 2 . . . . Propulsion 13 | . . . . 6 1 3 . 1 . 2 Utility 2 | . . . . . 1 1 . . . . Weapon 9 | . . . . 1 . 3 . . . 5 Highest Loss Streak 3 | . . . . 2 1 3 . 1 . 3 To Critical Strikes . | . . . . . . . . . . . Average Backups 9 | . 1 1 3 7 11 12 12 11 12 8 Power 1 | . . . . 2 2 2 1 1 1 . Propulsion . | . . . . . . . . . . . Utility 4 | . . . . 2 4 5 6 6 6 5 Weapon 3 | . 1 1 2 1 4 4 5 4 5 1 Tool/Special . | . . . . . . . . . . . Unused Backups 8 | . . . . 2 . 1 . 1 . 4 Power 1 | . . . . 1 . . . . . . Propulsion 1 | . . . . . . . . 1 . . Utility 4 | . . . . . . . . . . 4 Weapon 2 | . . . . 1 . 1 . . . . Tool/Special . | . . . . . . . . . . . Average Slot Usage (%) 57 | . 85 98 85 82 60 60 53 51 15 17 Engine 5 | . 14 14 11 9 5 4 6 5 . . Leg 2 | . . . . 9 4 . . . . . Wheel 13 | . 28 28 22 6 15 26 20 20 5 . Flight 3 | . . . 8 13 3 . . . . . Device 5 | . . 12 11 11 5 3 6 5 . . Storage 8 | . 14 14 11 11 9 7 6 6 5 4 Ballistic Gun 12 | . 28 28 22 19 17 8 . . . 7 Ballistic Cannon 2 | . . . . . . 6 13 13 . 1 Peak Build Rating 51 | 6 6 9 11 14 43 51 39 40 20 20 Average Rating 22 | 4 6 8 10 10 28 41 39 38 18 11 On Entrance 18 | . 6 6 9 11 9 43 39 39 23 20 Avg Prop Armor Cover (%) 3 | . . . 3 3 3 . . 15 . . Naked Turns 13 | . . . . . . . . . . 13 Heaviest Build 40 | 14 14 15 16 19 39 40 40 40 25 29 Greatest Support 112 | 26 26 26 26 30 84 112 68 68 28 28 Greatest Overweight (x) 9 | . . . . 3 2 . . 3 . 9 Average Overweight (x) . | . . . . . . . . . . 4 Largest Inventory Capacity 15 | 8 8 8 8 8 15 15 15 15 15 15 Average Capacity 12 | 6 8 8 8 8 13 15 15 15 15 14 Most Carried 15 | 2 1 2 6 8 15 15 12 15 15 13 Average Carried 9 | . 1 1 3 7 12 13 12 13 13 8 Final Capacity 15 | 8 8 8 8 8 15 15 15 15 15 5 Final Carried 15 | 1 1 2 6 7 15 12 12 14 13 5 Class Distribution -------------------- 89% | Mutant 8% | Commander-Mutant Dominant Class ---------------- Mutant | -10/Materials Mutant | -10/Mines Mutant | -9/Materials Mutant | -9/Storage Mutant | -8/Materials Mutant | -7/Factory Mutant | -6/Factory Mutant | -6/DSF Mutant | -5/Factory Mutant | -5/Upper Caves Resources | -11 -10 -10 -9 -9 -8 -7 -6 -6 -5 -5 ----------- Run | Yrd Mat Min Mat Sto Mat Fac Fac DSF Fac Upp Matter Collected 1797 | 163 . 137 58 464 345 364 . . 105 161 Remotely . | . . . . . . . . . . . Salvage Created 2267 | . . . 108 826 688 461 . . 105 79 Parts 130 | . . . 5 56 28 34 . . 4 3 Haulers Intercepted 7 | . . . . 4 2 . . . 1 . Recyclers Shooed 3 | . . . . 3 . . . . . . Parts Field Recycled . | . . . . . . . . . . . Retrieved Matter . | . . . . . . . . . . . Parts Self-Destructed 3 | . . . . . . . . . . 3 Prevented . | . . . . . . . . . . . Parts Restored . | . . . . . . . . . . . Kills | -11 -10 -10 -9 -9 -8 -7 -6 -6 -5 -5 ------- Run | Yrd Mat Min Mat Sto Mat Fac Fac DSF Fac Upp Combat Hostiles Destroyed 36 | . . . 2 11 9 10 . . . 4 Melee 2 | . . . . . . 1 . . . 1 Guns 30 | . . . 2 11 9 6 . . . 2 Cannons 4 | . . . . . . 3 . . . 1 Classes Destroyed 11 | . . . 1 6 1 3 . . . . Worker 2 | . . . . . 1 1 . . . . Builder 3 | . . . . 1 . 2 . . . . Hauler 7 | . . . . 4 2 . . . 1 . Recycler 5 | . . . . 2 2 1 . . . . Mechanic 1 | . . . . . . 1 . . . . Operator 2 | . . . . 1 1 . . . . . Swarmer 8 | . . . . 2 . 3 . . . 3 Grunt 12 | . . . . 4 6 2 . . . . Sentry 14 | . . . 2 5 4 2 . . . 1 Hunter 1 | . . . . . . 1 . . . . Programmer 2 | . . . . . . 2 . . . . Best Kill Streak 8 | . . . 1 5 8 5 . . 1 3 Combat Bots Only 4 | . . . 1 4 3 3 . . . 3 Max Kills in Single Turn 5 | . . . 1 1 1 5 . . 1 1 Gunslinging . | . . . . . . . . . . . Exploded . | . . . . . . . . . . . Melee 1 | . . . . . . 1 . . . 1 Uniques/NPCs Destroyed . | . . . . . . . . . . . Combat | -11 -10 -10 -9 -9 -8 -7 -6 -6 -5 -5 -------- Run | Yrd Mat Min Mat Sto Mat Fac Fac DSF Fac Upp Hostile Shots Fired 506 | . . 12 8 86 57 159 9 35 16 124 Missed 145 | . . 5 1 28 13 48 4 11 6 29 Hits 361 | . . 7 7 58 44 111 5 24 10 95 Melee 9 | . . . . . . . . 8 . 1 Projectile 352 | . . 7 7 58 44 111 5 16 10 94 AOE 2 | . . . . . . . . 2 . . Critical Strikes 12 | . . . . 1 2 1 . 6 . 2 Part Disruptions 4 | . . . . . . . . 4 . . Damage Taken 6154 | . . 87 105 886 701 1796 22 427 268 1862 Core 1637 | . . 24 14 145 96 216 . 130 130 882 Absorbed by Shields 54 | . . . . . . . 11 43 . . Core Remaining (%) 80 | 100 . 90 . 60 82 69 . 84 . . Volleys Fired 195 | . . 5 5 80 26 55 1 . . 23 Largest 2 | . . 2 2 2 2 2 2 . . 2 Hottest 80 | . . 40 43 46 56 80 80 . . 50 Shots Fired 314 | . . 10 10 99 52 111 2 . . 30 Gun 256 | . . 10 10 99 52 71 . . . 14 Cannon 58 | . . . . . . 40 2 . . 16 Launcher . | . . . . . . . . . . . Special . | . . . . . . . . . . . Kinetic 314 | . . 10 10 99 52 111 2 . . 30 Thermal . | . . . . . . . . . . . Explosive . | . . . . . . . . . . . Electromagnetic . | . . . . . . . . . . . Robot Hit Streak 21 | . . 5 6 21 10 9 1 . . 12 Robot Miss Streak 11 | . . 1 1 2 11 6 2 . . 6 Penetration Max . | . . . . . . . . . . . Secondary Targets 1 | . . . . . 1 . . . . . Max Gunslinging Chain 1 | . . . . . 1 . . . . . Shots Hit Robots 227 | . . 9 7 72 47 66 1 . 3 22 Core Hits 133 | . . 3 4 30 56 31 . . 2 7 Critical Kills 1 | . . . . 1 . . . . . . Critical Parts Destroyed . | . . . . . . . . . . . Critical Strikes 7 | . . . . 1 . 2 . . 1 3 Destroy 1 | . . . . 1 . . . . . . Blast 4 | . . . . . . 2 . . . 2 Sever 2 | . . . . . . . . . 1 1 Melee Attacks 16 | . . . . 6 . . . . 4 6 Impact . | . . . . . . . . . . . Slashing 16 | . . . . 6 . . . . 4 6 Piercing . | . . . . . . . . . . . Sneak Attacks 1 | . . . . 1 . . . . . . Combat Hostiles . | . . . . . . . . . . . Follow-up Attacks . | . . . . . . . . . . . Damage Inflicted 4976 | . . 129 96 1131 838 1881 31 . 175 695 Guns 2933 | . . 118 96 1076 838 755 . . . 50 Cannons 1018 | . . . . . . 614 31 . . 373 Explosions 446 | . . . . . . 446 . . . . Melee 472 | . . . . 51 . . . . 157 264 Ramming 107 | . . 11 . 4 . 66 . . 18 8 Kinetic 3951 | . . 118 96 1076 838 1369 31 . . 423 Thermal . | . . . . . . . . . . . Explosive 446 | . . . . . . 446 . . . . Electromagnetic . | . . . . . . . . . . . Impact . | . . . . . . . . . . . Slashing 472 | . . . . 51 . . . . 157 264 Piercing . | . . . . . . . . . . . Highest Corruption 7 | . . 2 . 1 . 7 . 1 . . Average Corruption 2 | . . 1 . 1 . 4 . 1 . . Corruption Purged . | . . . . . . . . . . . Corruption Blocked . | . . . . . . . . . . . Effects 20 | . . 1 . 4 . 14 . 1 . . Message Errors 5 | . . . . 2 . 3 . . . . Matter Fused 4 | . . 1 . 1 . 2 . . . . Heat Flow Errors 1 | . . . . . . 1 . . . . Energy Discharges 3 | . . . . . . 3 . . . . Data Loss (minor) 3 | . . . . . . 3 . . . . Data Loss (major) 1 | . . . . . . . . 1 . . Misfires 1 | . . . . . . 1 . . . . Alerts 1 | . . . . . . 1 . . . . Weapon Failures 1 | . . . . 1 . . . . . . Overload Shots . | . . . . . . . . . . . Overflow Damage 192 | . . . . 17 . 140 . . . 35 Projectiles 17 | . . . . . . 17 . . . . Explosions 140 | . . . . 17 . 123 . . . . Melee 35 | . . . . . . . . . . 35 Knockbacks 5 | . . . . . . 5 . . . . Impact . | . . . . . . . . . . . Kinetic 5 | . . . . . . 5 . . . . Secondary . | . . . . . . . . . . . Self-Inflicted Damage 371 | . . 5 . 128 . 226 . . 8 4 Shots 5 | . . . . 2 . 3 . . . . Rammed 22 | . . 2 . . 1 14 . . 3 2 Targets Rammed 23 | . . 2 . 1 1 14 . . 3 2 Kicked 1 | . . . . 1 . . . . . . Crushed . | . . . . . . . . . . . Highest Temperature 120 | . . 8 . 18 8 120 . . . 7 Average Temperature 13 | . . 5 . 4 5 24 . . . 7 Received Heat Transfer 1273 | . . 48 36 297 333 282 4 . 54 219 Siege Activations . | . . . . . . . . . . . Martial Activations . | . . . . . . . . . . . Shielding Activations . | . . . . . . . . . . . Robots Disrupted . | . . . . . . . . . . . Combat Hostiles . | . . . . . . . . . . . Robots Corrupted . | . . . . . . . . . . . Combat Hostiles . | . . . . . . . . . . . Parts Fried . | . . . . . . . . . . . Impact Corruptions . | . . . . . . . . . . . Robots Melted . | . . . . . . . . . . . Combat Hostiles . | . . . . . . . . . . . Parts Melted . | . . . . . . . . . . . Heat Transferred . | . . . . . . . . . . . Parts Sabotaged . | . . . . . . . . . . . Parts Stolen . | . . . . . . . . . . . Parts Stripped . | . . . . . . . . . . . Power Chain Reactions . | . . . . . . . . . . . Alert | -11 -10 -10 -9 -9 -8 -7 -6 -6 -5 -5 ------- Run | Yrd Mat Min Mat Sto Mat Fac Fac DSF Fac Upp Maximum Alert Level . | . . . . . . . . . . . Low Security (%) 100 | 100 100 100 100 100 100 100 100 100 100 . Level 1 . | . . . . . . . . . . . Level 2 . | . . . . . . . . . . . Level 3 . | . . . . . . . . . . . Level 4 . | . . . . . . . . . . . Level 5 . | . . . . . . . . . . . High Security . | . . . . . . . . . . . Max Security . | . . . . . . . . . . . Peak Influence 190 | . . . 54 190 168 168 53 34 12 . Initial 76 | . . . . 18 67 76 53 19 12 . Average 81 | . . . 15 142 56 88 38 23 3 . Influence Increases 1668 | . . . 64 592 402 478 5 15 7 105 Destroy 0b10 Robot/C 840 | . . . 40 300 220 200 . . . 80 Destroy 0b10 Robot/NC 105 | . . . . 45 30 25 . . 5 . Destroy Leader 266 | . . . 20 100 64 70 . . 2 10 Allied During Kill 42 | . . . 4 25 13 . . . . . Successful Hack 24 | . . . . 7 . 12 5 . . . Disable Machine 195 | . . . . 90 . 105 . . . . Destroy Structure 76 | . . . . 25 . 51 . . . . Lose Combat Pursuer 120 | . . . . . 75 15 . 15 . 15 Influence Decreases 1668 | . . . 20 476 394 536 87 19 31 105 Entered New Map 289 | . . . . 26 93 92 57 9 12 . Time Decay 1071 | . . . 20 350 218 354 30 . 19 80 Lost Part 225 | . . . . 80 20 90 . 10 . 25 Lost Ally 83 | . . . . 20 63 . . . . . Squads Dispatched 10 | . 2 . . 2 1 3 . 1 1 . Investigation . | . . . . . . . . . . . Extermination 2 | . . . . . . 2 . . . . Reinforcement 8 | . 2 . . 2 1 1 . 1 1 . Assault . | . . . . . . . . . . . Garrison . | . . . . . . . . . . . Intercept . | . . . . . . . . . . . Searches Triggered . | . . . . . . . . . . . Construction Impeded . | . . . . . . . . . . . Haulers Reinforced 1 | . . . . . . . . . 1 . Active Scanning Responses . | . . . . . . . . . . . Cargo Convoy Interrupts . | . . . . . . . . . . . Stealth | -11 -10 -10 -9 -9 -8 -7 -6 -6 -5 -5 --------- Run | Yrd Mat Min Mat Sto Mat Fac Fac DSF Fac Upp Distress Signals 5 | . . . . 2 3 . . . . . Communications Jammed . | . . . . . . . . . . . Distress Signals . | . . . . . . . . . . . Times Spotted 86 | . 3 3 2 23 20 14 1 6 4 10 Peak Tracking Total 6 | . 2 2 1 5 6 3 1 6 4 5 Tactical Retreats 5 | . . . . . 2 1 . 1 . 1 Traps | -11 -10 -10 -9 -9 -8 -7 -6 -6 -5 -5 ------- Run | Yrd Mat Min Mat Sto Mat Fac Fac DSF Fac Upp Traps Triggered 5 | . . . . 1 . 1 . 3 . . Indirectly . | . . . . . . . . . . . Trap Hack Attempts . | . . . . . . . . . . . Triggered . | . . . . . . . . . . . Disarmed . | . . . . . . . . . . . Reprogrammed . | . . . . . . . . . . . Reused . | . . . . . . . . . . . Traps Extracted . | . . . . . . . . . . . Installed . | . . . . . . . . . . . Triggered . | . . . . . . . . . . . Machines | -11 -10 -10 -9 -9 -8 -7 -6 -6 -5 -5 ---------- Run | Yrd Mat Min Mat Sto Mat Fac Fac DSF Fac Upp Machines Disabled 13 | . . . . 6 . 7 . . . . Max in Single Turn 4 | . . . . 2 . 4 . . . . Machines Repaired . | . . . . . . . . . . . Machines Dismantled . | . . . . . . . . . . . Machines Sabotaged . | . . . . . . . . . . . Overloaded Fab Kills . | . . . . . . . . . . . Hacking | -11 -10 -10 -9 -9 -8 -7 -6 -6 -5 -5 --------- Run | Yrd Mat Min Mat Sto Mat Fac Fac DSF Fac Upp Machines Accessed 4 | . . . . 2 . 1 1 . . . Terminals 3 | . . . . 2 . . 1 . . . Fabricators . | . . . . . . . . . . . Repair Stations . | . . . . . . . . . . . Recycling Units . | . . . . . . . . . . . Scanalyzers 1 | . . . . . . 1 . . . . Garrison Access . | . . . . . . . . . . . Total Hacks 4 | . . . . 2 . 1 1 . . . Successful 4 | . . . . 2 . 1 1 . . . Failed . | . . . . . . . . . . . Catastrophic . | . . . . . . . . . . . Database Lockouts . | . . . . . . . . . . . Manual 1 | . . . . 1 . . . . . . Terminals 3 | . . . . 2 . . 1 . . . Fabricators . | . . . . . . . . . . . Repair Stations . | . . . . . . . . . . . Recycling Units . | . . . . . . . . . . . Scanalyzers 1 | . . . . . . 1 . . . . Garrison Access . | . . . . . . . . . . . Terminal Hacks 3 | . . . . 2 . . 1 . . . Open Door 2 | . . . . 2 . . . . . . Open DSF 1 | . . . . . . . 1 . . . Fabricator Hacks . | . . . . . . . . . . . Repair Station Hacks . | . . . . . . . . . . . Recycling Unit Hacks . | . . . . . . . . . . . Scanalyzer 1 | . . . . . . 1 . . . . Retrieve Study 1 | . . . . . . 1 . . . . Garrison Access Hacks . | . . . . . . . . . . . Unauthorized Hacks . | . . . . . . . . . . . Terminals . | . . . . . . . . . . . Fabricators . | . . . . . . . . . . . Repair Stations . | . . . . . . . . . . . Recycling Units . | . . . . . . . . . . . Scanalyzers . | . . . . . . . . . . . Garrison Access . | . . . . . . . . . . . Data Cores Recovered . | . . . . . . . . . . . Used . | . . . . . . . . . . . Hacking Detections 1 | . . . . 1 . . . . . . Full Trace Events . | . . . . . . . . . . . Feedback Events . | . . . . . . . . . . . Feedback Blocked . | . . . . . . . . . . . Robot Schematics Acquired . | . . . . . . . . . . . Robots Built . | . . . . . . . . . . . Authchips . | . . . . . . . . . . . Time . | . . . . . . . . . . . Total Robot Build Rating . | . . . . . . . . . . . Part Schematics Acquired . | . . . . . . . . . . . Parts Built . | . . . . . . . . . . . Authchips . | . . . . . . . . . . . Time . | . . . . . . . . . . . Total Part Build Rating . | . . . . . . . . . . . Part Studies Acquired 1 | . . . . . . 1 . . . . Parts Repaired . | . . . . . . . . . . . Time . | . . . . . . . . . . . Parts Recycled . | . . . . . . . . . . . Recycled Matter . | . . . . . . . . . . . Retrieved Matter . | . . . . . . . . . . . Retrieved Components . | . . . . . . . . . . . Parts Scanalyzed . | . . . . . . . . . . . Part Schematics Acquired . | . . . . . . . . . . . Parts Damaged . | . . . . . . . . . . . Bothacking | -11 -10 -10 -9 -9 -8 -7 -6 -6 -5 -5 ------------ Run | Yrd Mat Min Mat Sto Mat Fac Fac DSF Fac Upp Used RIF Installer . | . . . . . . . . . . . Robots Hacked . | . . . . . . . . . . . Non-combat . | . . . . . . . . . . . Combat . | . . . . . . . . . . . Robot Hacks Applied . | . . . . . . . . . . . Relay Couplers Released . | . . . . . . . . . . . Fabnet Peak Effective % . | . . . . . . . . . . . Robots Rewired . | . . . . . . . . . . . Allies Hacked . | . . . . . . . . . . . Hacks Repelled . | . . . . . . . . . . . Allies | -11 -10 -10 -9 -9 -8 -7 -6 -6 -5 -5 -------- Run | Yrd Mat Min Mat Sto Mat Fac Fac DSF Fac Upp Total Allies 11 | . . 1 . 10 . . . . . . Largest Group 10 | . . 1 1 10 10 . . . . . Highest-Rated Group 88 | . . 31 31 88 88 . . . . . Highest-Rated Ally 31 | . . 31 31 31 16 . . . . . Total Orders . | . . . . . . . . . . . Ally Attacks 62 | . . . . 26 36 . . . . . Total Damage 600 | . . . . 273 327 . . . . . Kills 7 | . . . . 5 2 . . . . . Allies Corrupted . | . . . . . . . . . . . Allies Melted . | . . . . . . . . . . . Intel | -11 -10 -10 -9 -9 -8 -7 -6 -6 -5 -5 ------- Run | Yrd Mat Min Mat Sto Mat Fac Fac DSF Fac Upp Active Infowar (turns) 840 | . . . . 775 65 . . . . . Sensors 840 | . . . . 775 65 . . . . . Robot Analysis Total . | . . . . . . . . . . . Derelict Logs Recovered 1 | . . 1 . . . . . . . . Drone Launches . | . . . . . . . . . . . Drone Recoveries . | . . . . . . . . . . . Exploration | -11 -10 -10 -9 -9 -8 -7 -6 -6 -5 -5 ------------- Run | Yrd Mat Min Mat Sto Mat Fac Fac DSF Fac Upp Turns Passed 3592 | 60 52 140 93 794 537 940 77 80 83 736 Spaces Moved 2199 | 50 58 117 80 432 302 726 80 74 74 206 Core 132 | 3 . . . . . . . . . 129 Treads 73 | . . . . . . . . . . 73 Legs 306 | . . . . 221 85 . . . . . Wheels 1670 | 47 58 117 80 193 217 726 80 74 74 4 Hover . | . . . . . . . . . . . Flight 18 | . . . . 18 . . . . . . Fastest Speed 50 | 50 90 90 90 90 100 90 90 90 90 50 Average Speed 126 | 85 90 90 90 126 129 96 90 97 90 319 Slowest Speed 500 | 90 90 90 90 290 260 100 90 135 90 500 Overloaded Moves . | . . . . . . . . . . . Propulsion Burnouts . | . . . . . . . . . . . Robots Hopped . | . . . . . . . . . . . Potential Cave-ins . | . . . . . . . . . . . Cave-ins Triggered 1 | . . . . . . 1 . . . . Exploration Rate (%) 25 | 3 26 31 11 50 26 20 2 69 5 33 Regions Visited 10 Branch Regions 3 Pre-discovered Areas 3 | . . 3 . . . . . . . . Known Exits Taken 1 | . . . . . . . 1 . . . Unknown Exits Taken 8 | 1 1 1 1 1 1 1 . . 1 . Scrap Searched 2 | . . 2 . . . . . . . . Spaces Dug 2 | . . . . . . 2 . . . . Terrain Destroyed 75 | . . . . 24 . 50 . . . 1 Melee . | . . . . . . . . . . . Projectile 10 | . . . . . . 9 . . . 1 AOE 65 | . . . . 24 . 41 . . . . Terrain Rammed . | . . . . . . . . . . . Walls Destroyed . | . . . . . . . . . . . Machines Disabled . | . . . . . . . . . . . Actions | -11 -10 -10 -9 -9 -8 -7 -6 -6 -5 -5 --------- Run | Yrd Mat Min Mat Sto Mat Fac Fac DSF Fac Upp Total 2666 | 64 57 141 89 562 399 863 82 83 83 243 Wait 110 | 7 . 16 . 9 38 38 2 . . . Move 2189 | 49 57 116 79 431 301 725 79 73 73 206 Hop . | . . . . . . . . . . . Pick Up 26 | 2 . 1 3 4 8 5 . 3 . . Fast Attach 36 | 5 . 1 1 10 9 8 . . . 2 Attach 16 | 1 . . . 3 1 6 . . 1 4 Detach 12 | . . . . 3 5 3 . . 1 . Swap 14 | . . . 1 8 2 3 . . . . Drop 25 | . . . . 7 8 6 . 3 1 . Fire 195 | . . 5 5 80 26 55 1 . . 23 Melee 16 | . . . . 6 . . . . 4 6 Ram 22 | . . 2 . . 1 14 . . 3 2 Kick 1 | . . . . 1 . . . . . . Crush . | . . . . . . . . . . . Escape Stasis 4 | . . . . . . . . 4 . . Rewire . | . . . . . . . . . . . Trap . | . . . . . . . . . . . Miscellaneous . | . . . . . . . . . . . Route ------- -11/Scrapyard -10/Materials -10/Mines -9/Materials -9/Storage -8/Materials -7/Factory -6/Factory -6/DSF -5/Factory -5/Upper Caves History --------- Turn | Location | Event 37 | -11/Scrapyard | Discovered new exit (range 15) 61 | -11/Scrapyard | Entered Materials 96 | -10/Materials | Discovered new exit (range 7) 113 | -10/Materials | Entered Mines 130 | -10/Mines | Escorted by a lone wolf Derelict 150 | -10/Mines | Learned location of Storage (-9) 233 | -10/Mines | Discovered new exit (range 6) 253 | -10/Mines | Entered Materials 253 | -9/Materials | Accompanied by 1 ally 253 | -9/Materials | Evolved 2 slots: Propulsion x2 300 | -9/Materials | Build established: Mutant 326 | -9/Materials | Discovered new exit (range 10) 346 | -9/Materials | Entered Storage 346 | -9/Storage | Accompanied by 1 ally 1015 | -9/Storage | Assisted by bots powering up and referring to "LRC-V3" 1081 | -9/Storage | Discovered new exit (range 16) 1140 | -9/Storage | Entered Materials 1140 | -8/Materials | Accompanied by 10 allies 1140 | -8/Materials | Evolved 2 slots: Propulsion x2 1311 | -8/Materials | Build established: Commander-Mutant 1355 | -8/Materials | Lost 6 allies 1416 | -8/Materials | Lost 3 allies 1623 | -8/Materials | Build established: Mutant 1662 | -8/Materials | Discovered new exit (range 16) 1677 | -8/Materials | Entered Factory 1677 | -7/Factory | Evolved 2 slots: Propulsion x2 2071 | -7/Factory | Crushed by falling debris 2102 | -7/Factory | Lost 3 parts (1p1n1u) 2180 | -7/Factory | Lost 3 parts (1n2w) 2601 | -7/Factory | Discovered new exit (range 14) 2617 | -7/Factory | Entered another Factory area 2617 | -6/Factory | Evolved 2 slots: Power x1, Utility x1 2694 | -6/Factory | Identified exit to DSF 2694 | -6/Factory | Entered DSF 2728 | -6/DSF | Additional patrols routed to DSF 2763 | -6/DSF | Discovered new exit (range 12) 2774 | -6/DSF | Entered Factory 2774 | -5/Factory | Evolved 2 slots: Power x1, Utility x1 2839 | -5/Factory | Discovered new exit (range 15) 2857 | -5/Factory | Entered Upper Caves 2910 | -5/Upper Caves | Lost 3 parts (1n2w) 3279 | -5/Upper Caves | Attracted the attention of an 0b10 checkpoint 3336 | -5/Upper Caves | Core integrity fell below 50% 3559 | -5/Upper Caves | Spotted B-75 Beast 3580 | -5/Upper Caves | Released all parts (2) 3583 | -5/Upper Caves | Core integrity fell below 20% 3593 | -5/Upper Caves | Destroyed by B-60 Warrior with Heavy Mace Last Messages --------------- 03344_ Y-64 Sentinel KE Penetrator blasted off. 03346_ Critical hit (Burn: +37). 03349_ Y-64 Sentinel heat damages Unknown Treads, Wave Gun. 03350_ Y-64 Sentinel destroyed. 03352_ Acquired 5 matter. 03360_ Acquired 7 matter. 03364_ Acquired 24 matter. 03368_ Acquired 2 matter. 03384_ Acquired 37 matter. 03392_ Acquired Med. Treads. 03401_ Acquired KE Penetrator. 03566_ Med. Treads destroyed. 03566_ Knocked back. 03571_ Acquired 2 matter. 03572_ KE Penetrator destroyed. 03580_ Released Lrg. Storage Unit. 03580_ Released Mni. Assault Cannon. 03586_ Knocked back. 03592_ Slammed into G-50 Soldier. Map ----- +----------------------------------------------------+ | | | | | ?????????????????????????????????????????????????? | | ?????????????????????????????????????????????????? | | ?????????????????????????????????????????????????? | | ?????????????????????????????????????????????????? | | ?????????????????????????????????????????????????? | | ?????????????????????????????????????????????????? | | ?????????????????????????????????????????????????? | | ?????????????????????????????????????????????????? | | ?????????????????????????????????????????????????? | | ?????????????????????????????????????????????????? | | ?????????????????????????????????????????????????? | | ?????????????????????????????????????????????????? | | ?????????????????????????????????????????????????? | | ?????????????????????????????????????????????????? | | ????????????????????????###??####????????????????? | | ????????????????????????# ### ##???????##??????? | | ????????????????????????# #??????# #??????? | | ????????????????????????## ####?????# ##?????? | | ?????????????????????????## #?????### #?????? | | ?????????????????????????#" ##???# #?????? | | ?????????????????????????#" %##?? ##????? | | ?????????????????????????## ### ##???? | | ???????????????# ###### #???? | | ???????????# g@ #??? | | ??????????????# g gb BB ## #?? | | ??????????????## #### BB ####???? ???? | | ???????????????## #?????# ##?????????????? | | ????????????????????????## ;######????????? | | ?????????????????????????# " #????????? | | ?????????????????????????# %% ;##????????? | | ?????????????????????????#### ;]!%##???????? | | ????????????????????????????# ###!! "???????? | | ???????????????????????????# ;###*% ##??????? | | ??????????????????????????# #### ##???????? | | ????????????????????????? #?# ####?????? | | ??????????????????????? ## #?# ##????? | | ???????????????????????## ## #?## ##???? | | ????????????????????????#### #?# ???# ##??? | | ???????????????????????????##??# ???# ##?? | | ???????????????????????????##### #### #?? | | ??????????????????????????# #?? | | ??????????????????????????# ##? | | ??????????????????????????# ######## #? | | ????????????????????????????????????## #? | | ????????????????????????????????###### #? | | ????????????????????????????????# #? | | ???????????????????????????????# #? | | ?????????????????????????????# ### #? | +----------------------------------------------------+ Best States ------------- Heat Dissipation 48 Energy Generation 23 Energy Capacity 280 Matter Stores 300 Matter Capacity 300 Sight Range 16 Robot Scan Range 14 Terrain Scan Density 10 Resistance: EX 25 Evasion (%) 55 Recoil Reduction 1 Kinecelleration 30 Item Schematics ----------------- None Robot Schematics ------------------ None Fabricated ------------ Nothing Repaired ---------- Nothing Studied --------- Arm. Huge Wheel | -7/Factory | Hacked Alien Tech Used ----------------- None Achievements -------------- None Challenges ------------ None Game ------ Seed FrostLightningPurifier Manual? 0 Play Time 00:24:52 Cumulative 52.2 hours Start 2025.12.18 @ 23:23:49 End 2025.12.18 @ 23:48:02 Sessions 1 Manual Loads 0 Difficulty Rogue Special Mode None Game No. 199 Rogue 199 Adventurer 0 Explorer 0 Win Type - Total 0 Types 0/0/0/0/0/0/0/0/0/0 Lore% 12 Gallery% 38 Achievement% 25 Wizard Run 0 Options --------- Layout 1 ASCII 0 Keyboard 1 Movement Vi Keybinds 0 Fullscreen 1 Font 16/SmallcapsGlow Map View 55x38 Zoom Use 0% Tactical HUD 1 Map Filters NONE Filters NONE Steam X RUN: a87ae0a0-7188-4c77-a905-01da82b53c5b